bitfinex/quotes_ETHUSD_20251015
["timestamp","ask_amount","ask_price","bid_price","bid_amount"]
[1760501477981,2.482,4094.7,4094.6,2.563841]
[1760501478485,2.8294,4094.7,4094.2,0.1216]
[1760501478853,2.7304,4094.7,4094.3,2.44241902]
[1760501479153,2.482,4094.7,4094.6,2.442241]
[1760501480079,2.482,4094.7,4094.4,0.1216]
[1760501480286,2.5813,4094.7,4094.4,0.1216]
[1760501480488,2.5813,4094.7,4094.6,2.442241]
[1760501480779,2.482,4094.7,4094.6,2.442241]
[1760501482287,2.482,4094.7,4094.4,0.1216]
[1760501482451,0.2209,4094.6,4094.0,0.002]
[1760501483280,0.2209,4094.6,4094.1,2.44249544]
[1760501483500,0.2209,4094.6,4094.0,2.44459166]
[1760501483678,0.1216,4094.6,4094.0,0.002]
[1760501483886,0.1216,4094.6,4094.3,2.4423628]
[1760501484305,0.1216,4094.6,4094.4,2.44233547]
[1760501484502,0.1216,4094.6,4094.5,2.44230064]
[1760501485290,2.482,4094.7,4094.3,2.44241494]
[1760501485291,2.482,4094.7,4094.6,2.442241]
[1760501485594,2.482,4094.7,4094.4,0.1216]
[1760501485595,1.1,4094.6,4094.5,2.44229129]
[1760501486301,1.67894,4094.6,4094.1,2.44250543]
[1760501486506,0.0995,4094.5,4094.0,0.1236]
[1760501486803,0.0995,4094.4,4094.0,0.1236]
[1760501487007,2.48,4094.3,4094.0,2.56619565]
[1760501487231,2.48,4094.3,4094.0,0.1236]
[1760501487500,0.4691,4094.2,4094.0,0.002]
[1760501487698,0.1216,4094.2,4094.0,2.44458523]
[1760501487900,0.1216,4094.2,4094.1,2.44253926]
[1760501488268,2.48,4094.3,4094.2,2.4424796]
[1760501490515,2.48,4094.3,4094.2,2.9168796]
[1760501492298,2.48,4094.3,4094.2,2.5640796]
[1760501492710,2.48,4094.3,4094.0,0.002]
[1760501492885,2.8273,4094.3,4094.0,0.002]
[1760501493219,2.48,4094.3,4094.0,2.44459051]
[1760501493387,2.48,4094.3,4094.0,0.002]
[1760501493583,2.48,4094.3,4094.2,2.4424796]
[1760501493892,2.48,4094.3,4094.1,2.44252621]
[1760501494521,2.48,4094.3,4094.2,2.4424796]
[1760501495314,4.682,4094.3,4094.1,2.44252892]
[1760501496031,4.682,4094.3,4094.2,2.4424796]
[1760501496820,2.48,4094.3,4094.2,2.4424796]
[1760501497398,2.48,4094.3,4094.2,2.9168796]
[1760501497816,2.48,4094.3,4094.2,2.4424796]
[1760501500137,2.48,4094.3,4094.0,2.44456019]
[1760501500138,2.5793,4094.3,4094.0,0.002]
[1760501500495,2.48,4094.3,4094.0,0.002]
[1760501500831,0.35723,4094.2,4094.0,0.002]
[1760501501192,0.7329,4094.1,4094.0,0.002]
[1760501502508,3.17543926,4094.1,4094.0,0.002]
[1760501503521,0.7329,4094.1,4094.0,0.002]
[1760501503735,3.1136,4094.1,4094.0,0.002]
[1760501503902,3.460683,4094.1,4094.0,0.002]
[1760501504101,6.00252226,4094.1,4094.0,0.002]
[1760501505225,7.10352226,4094.1,4094.0,0.002]
[1760501505406,8.58759418,4094.1,4094.0,0.002]
[1760501506716,7.48659418,4094.1,4094.0,0.002]
[1760501509707,2.86307192,4094.1,4094.0,0.002]
[1760501509906,0.001,4094.3,4094.2,2.4424796]
[1760501510217,2.481,4094.3,4094.1,0.2139]
[1760501510419,2.481,4094.3,4094.1,2.65643873]
[1760501511331,2.481,4094.3,4094.1,0.2139]
[1760501512627,2.481,4094.3,4094.2,0.4484]
[1760501512828,2.481,4094.3,4094.2,2.8908796]
[1760501513030,2.481,4094.3,4094.2,0.4484]
[1760501514133,2.481,4094.3,4094.2,2.8908796]
[1760501514637,2.481,4094.3,4094.2,3.42442662]
[1760501515302,4.683,4094.3,4094.2,3.42442662]
[1760501515539,4.683,4094.3,4094.2,3.54602662]
[1760501517834,2.481,4094.3,4094.2,3.54602662]
[1760501518037,2.481,4094.3,4094.2,5.46602662]
[1760501518535,2.481,4094.3,4094.2,5.01762662]
[1760501518735,2.481,4094.3,4094.2,4.4840796]
[1760501518935,2.481,4094.3,4094.2,4.9324796]
[1760501524531,0.001,4094.7,4094.6,2.442241]
[1760501524732,0.001,4094.7,4094.6,15.49010451]
[1760501524970,0.001,4094.7,4094.6,16.06010451]
[1760501525271,2.203,4094.7,4094.6,18.10235099]
[1760501525761,4.594,4094.7,4094.6,20.02235099]
[1760501526169,3.493,4094.7,4094.6,6.40448748]
[1760501526371,2.392,4094.7,4094.6,4.362241]
[1760501529554,2.392,4094.7,4094.6,2.442241]
[1760501529753,2.491,4094.7,4094.0,2.44459118]
[1760501530051,4.93322599,4094.7,4094.0,0.002]
[1760501530254,0.5047526,4094.6,4094.0,2.44458382]
[1760501530455,2.392,4094.7,4094.0,0.002]
[1760501530656,2.392,4094.7,4094.0,2.44454535]
[1760501530864,2.392,4094.7,4094.1,2.44253851]
[1760501531172,0.7326,4094.6,4094.0,0.002]
[1760501531378,3.17485652,4094.6,4094.0,0.002]
[1760501531544,0.55678565,4094.5,4094.0,0.002]
[1760501531741,2.99909393,4094.5,4094.0,0.002]
[1760501531940,0.099,4094.4,4094.0,0.002]
[1760501532378,0.099,4094.4,4094.0,2.44459259]
[1760501532675,2.392,4094.7,4094.3,2.44241805]
[1760501532975,0.099,4094.6,4094.0,0.002]
[1760501533274,0.099,4094.6,4094.2,2.44246992]
[1760501533666,2.392,4094.7,4094.2,2.44246992]
[1760501534172,0.099,4094.6,4094.2,2.44246992]
[1760501534339,2.392,4094.7,4094.2,2.44242492]
[1760501534538,2.392,4094.7,4094.0,4.74144497]
[1760501534539,2.392,4094.7,4094.0,4.30304497]
[1760501534765,2.392,4094.7,4094.0,4.74144497]
[1760501535268,2.202,4094.6,4094.5,2.44230064]
[1760501536553,1.101,4094.6,4094.5,2.88070064]
[1760501536945,2.392,4094.7,4094.6,2.442241]
[1760501537141,2.392,4094.7,4094.6,6.74328597]
[1760501537353,2.392,4094.7,4094.3,0.1216]
[1760501537558,2.392,4094.7,4094.6,2.442241]
[1760501537763,2.392,4094.7,4094.6,7.18168597]
[1760501539878,2.392,4094.7,4094.6,2.442241]
[1760501541055,2.392,4094.7,4094.6,2.880641]
[1760501541372,2.392,4094.7,4094.6,3.84304394]
[1760501541758,2.392,4094.7,4094.1,2.4444861]
[1760501541961,2.392,4094.7,4094.1,0.002]
[1760501542281,2.392,4094.7,4094.2,2.4424676]
[1760501542455,2.392,4094.7,4094.1,0.002]
[1760501542780,2.392,4094.7,4094.6,2.442241]
[1760501545093,2.392,4094.7,4094.6,2.880641]
[1760501545398,4.592,4094.7,4094.6,2.442241]
[1760501547084,3.492,4094.7,4094.6,2.442241]
[1760501547295,2.392,4094.7,4094.5,2.4423004]
[1760501547602,2.392,4094.7,4094.1,1.922]
[1760501547603,2.392,4094.7,4094.6,2.442241]
[1760501549396,2.392,4094.7,4094.6,6.74328597]
[1760501549595,2.392,4094.7,4094.6,7.18168597]
[1760501550480,2.392,4094.7,4094.6,8.15625016]
[1760501550660,2.392,4094.7,4094.6,8.27785016]
[1760501551167,2.392,4094.7,4094.6,3.97680519]
[1760501551884,2.392,4094.7,4094.6,3.85520519]
[1760501553164,2.392,4094.7,4094.6,3.97477196]
[1760501554269,2.392,4094.7,4094.6,3.85520519]
[1760501555294,4.592,4094.7,4094.6,3.85520519]
[1760501555490,4.592,4094.7,4094.6,3.41680519]
[1760501555696,4.592,4094.7,4094.6,3.85520519]
[1760501555896,4.592,4094.7,4094.6,3.41680519]
[1760501556795,4.592,4094.7,4094.6,3.85520519]
[1760501556992,2.392,4094.7,4094.6,3.41680519]
[1760501557802,2.392,4094.7,4094.6,7.71785016]
[1760501560887,2.392,4094.7,4094.3,0.4404]
[1760501560888,2.392,4094.7,4094.3,0.002]
[1760501561093,2.392,4094.7,4094.3,2.44441026]
[1760501561094,0.0993,4094.6,4094.3,2.44441026]
[1760501561293,0.0993,4094.5,4094.3,0.002]
[1760501561801,0.0993,4094.5,4094.4,2.44236029]
[1760501562222,2.392,4094.7,4094.4,2.44236029]
[1760501562607,2.4913,4094.7,4094.4,2.44236029]
[1760501562806,2.4913,4094.7,4094.5,2.44228499]
[1760501565118,2.392,4094.7,4094.6,2.442241]
[1760501565327,4.592,4094.7,4094.6,2.442241]
[1760501566832,4.592,4094.7,4094.6,2.563841]
[1760501567135,4.592,4094.7,4094.6,3.017741]
[1760501567917,2.392,4094.7,4094.6,3.99405392]
[1760501568503,0.001,4094.7,4094.6,3.99405392]
[1760501568809,2.479,4094.7,4094.6,4.01847633]
[1760501569004,2.479,4094.7,4094.6,3.99405392]
[1760501570325,0.001,4094.8,4094.7,2.44218135]
[1760501570535,0.001,4094.8,4094.7,10.62097503]
[1760501571435,0.549,4094.8,4094.7,10.62097503]
[1760501573538,0.001,4095.0,4094.9,2.44206207]
[1760501573710,0.001,4095.0,4094.9,6.23880179]
[1760501573912,0.001,4095.0,4094.9,6.78128117]
[1760501574949,0.715,4095.0,4094.9,6.78128117]
[1760501575337,2.915,4095.0,4094.9,6.78128117]
[1760501578050,0.1657,4095.9,4095.8,2.44152546]
[1760501578226,1.1,4095.9,4095.8,6.74257043]
[1760501578421,1.1,4095.9,4095.8,6.86417043]
[1760501579208,0.1216,4096.3,4096.2,2.44128704]
[1760501579413,2.6983,4096.3,4096.2,2.44128704]
[1760501580624,2.477,4096.3,4096.2,2.44128704]
[1760501580827,2.477,4096.3,4096.2,7.59857854]
[1760501581145,2.5767,4096.3,4096.1,2.56294124]
[1760501581364,2.5767,4096.3,4096.1,0.1216]
[1760501581365,0.0997,4096.2,4096.1,0.1216]
[1760501581565,0.6336,4096.1,4095.5,0.1216]
[1760501581862,2.477,4096.3,4095.4,2.44171655]
[1760501581863,0.1644,4095.6,4095.4,2.44171655]
[1760501582019,2.477,4095.5,4095.4,2.44176393]
[1760501582449,2.5773,4095.5,4095.4,2.44176393]
[1760501583619,2.477,4095.5,4095.4,2.44176393]
[1760501583815,2.44107408,4096.6,4095.4,2.44176393]
[1760501583816,0.1216,4096.4,4096.1,2.44131571]
[1760501584119,0.6336,4096.2,4094.7,1.92]
[1760501584319,0.1216,4095.8,4095.4,2.44176274]
[1760501584520,0.1625,4095.5,4095.4,2.44176274]
[1760501584752,2.7417,4095.5,4095.4,2.44176274]
[1760501584919,2.6395,4095.5,4095.4,2.44176274]
[1760501585120,2.7417,4095.5,4095.4,2.44176274]
[1760501585322,4.9417,4095.5,4095.4,2.44176274]
[1760501585522,5.44803,4095.5,4095.1,0.1216]
[1760501585758,0.7358,4095.4,4094.6,0.002]
[1760501585923,0.1131,4094.7,4094.6,0.002]
[1760501586121,2.5901,4094.7,4094.6,0.002]
[1760501586418,2.6924,4094.7,4094.6,0.002]
[1760501586619,3.326,4094.7,4094.6,0.002]
[1760501587241,6.34498175,4094.7,4094.6,0.002]
[1760501589457,8.26498175,4094.7,4094.6,0.002]
[1760501591734,8.36296032,4094.7,4094.6,0.002]
[1760501593765,5.1892004,4094.7,4094.6,0.002]
[1760501593967,7.63138175,4094.7,4094.6,0.002]
[1760501594331,2.4968004,4094.7,4094.6,0.002]
[1760501594534,2.477,4094.7,4094.6,0.002]
[1760501594729,2.477,4094.7,4094.6,2.444241]
[1760501594929,2.477,4094.7,4094.6,2.890941]
[1760501595271,4.677,4094.7,4094.6,2.890941]
[1760501595429,3.577,4094.7,4094.6,3.42447063]
[1760501595886,2.477,4094.7,4094.6,3.42447063]
[1760501596468,0.54483732,4095.8,4094.6,0.98222963]
[1760501596469,0.38293732,4095.8,4094.6,0.98222963]
[1760501596668,0.1216,4095.4,4095.3,2.44181269]
[1760501596897,2.5986,4095.4,4095.3,2.88851269]
[1760501597218,0.73451549,4096.6,4095.3,2.88851269]
[1760501597219,0.001,4095.5,4095.4,2.44176393]
[1760501597369,0.001,4095.5,4095.4,2.88846393]
[1760501597700,0.291,4095.5,4095.4,2.88846393]
[1760501598892,0.001,4096.0,4095.9,2.44146585]
[1760501599205,0.001,4096.0,4095.9,2.92976758]
[1760501599380,0.001,4096.0,4095.9,3.37646758]
[1760501600004,2.207,4096.0,4095.9,3.37646758]
[1760501602479,2.478,4096.0,4095.9,3.37646758]
[1760501605084,2.478,4096.0,4095.9,2.44146585]
[1760501605288,4.678,4096.0,4095.9,2.44146585]
[1760501606370,4.678,4096.0,4095.9,2.88816585]
[1760501606572,3.578,4096.0,4095.9,2.88816585]
[1760501606791,2.478,4096.0,4095.9,2.88816585]
[1760501606996,2.478,4096.0,4095.9,3.42114055]
[1760501607277,2.478,4096.0,4095.9,3.54274055]
[1760501608967,2.478,4096.0,4095.9,3.09604055]
[1760501609401,2.478,4096.0,4095.9,3.54274055]
[1760501611294,0.001,4096.0,4095.9,3.54274055]
[1760501611474,0.1216,4097.1,4097.0,2.44081034]
[1760501612809,2.5976,4097.1,4097.0,2.44081034]
[1760501614186,2.476,4097.1,4097.0,2.44081034]
[1760501615308,4.676,4097.1,4097.0,2.44081034]
[1760501616098,3.576,4097.1,4097.0,2.44081034]
[1760501616303,2.476,4097.1,4097.0,2.44081034]
[1760501617108,3.1096,4097.1,4096.6,0.1216]
[1760501617291,0.1216,4096.9,4096.6,2.44100159]
[1760501617487,0.3017,4096.9,4096.7,2.44097699]
[1760501618089,0.3017,4096.9,4096.3,0.1216]
[1760501618294,0.1006,4096.8,4096.3,0.1216]
[1760501618717,0.1006,4096.8,4096.5,2.44106125]
[1760501619224,0.606444,4096.9,4096.6,2.44103871]
[1760501619915,0.606444,4096.9,4096.7,2.44098213]
[1760501620101,0.3017,4096.9,4096.7,2.44098213]
[1760501620307,0.3017,4096.9,4096.6,2.4410319]
[1760501620690,0.3017,4096.9,4096.7,2.4409785]
[1760501620985,0.1216,4096.9,4096.8,2.4409295]
[1760501621614,2.476,4097.1,4096.8,2.4409295]
[1760501622314,2.476,4097.1,4096.8,2.44092206]
[1760501622909,2.476,4097.1,4096.7,2.44096087]
[1760501623112,2.83476,4097.1,4096.7,2.44096087]
[1760501623312,2.83476,4097.1,4096.8,2.44091973]
[1760501623839,2.83476,4097.1,4095.2,0.6647]
[1760501623840,0.6336,4096.7,4095.2,0.6647]
[1760501624126,0.1216,4096.5,4095.9,2.44145748]
[1760501624312,0.1216,4096.5,4096.0,2.44138895]
[1760501624494,0.4005,4096.5,4096.0,2.44138895]
[1760501624694,0.1817,4096.1,4095.8,2.56310583]
[1760501624907,2.475,4096.0,4095.8,2.56310583]
[1760501625418,2.475,4096.0,4095.9,2.44146585]
[1760501625612,2.475,4096.0,4095.8,0.1216]
[1760501625819,2.475,4096.0,4095.5,2.44369]
[1760501626037,2.475,4096.0,4095.5,2.4436748]
[1760501626457,2.475,4096.0,4095.8,2.44150697]
[1760501626629,2.475,4096.0,4095.7,2.44158507]
[1760501626827,2.475,4096.0,4095.9,2.44146585]
[1760501627145,2.475,4096.0,4095.9,2.87586585]
[1760501627660,2.475,4096.0,4095.5,0.002]
[1760501627947,2.475,4096.0,4095.6,2.44159382]
[1760501628159,2.7546,4096.0,4095.7,2.44157672]
[1760501628362,2.7546,4096.0,4095.5,2.44365051]
[1760501628519,2.7546,4096.0,4095.6,2.44162529]
[1760501628718,0.1824,4095.9,4095.5,0.002]
[1760501628919,0.403,4095.9,4095.5,2.44364595]
[1760501629420,0.099,4095.8,4095.5,0.002]
[1760501629914,0.099,4095.7,4095.5,0.002]
[1760501630126,2.475,4095.6,4095.5,0.002]
[1760501630327,2.475,4095.6,4095.5,2.4437043]
[1760501630823,2.475,4095.6,4095.5,2.8781043]
[1760501632948,2.475,4095.6,4095.5,2.9997043]
[1760501633120,2.475,4095.6,4095.5,3.5462972]
[1760501635330,4.675,4095.6,4095.5,3.5462972]
[1760501636558,3.575,4095.6,4095.5,3.5462972]
[1760501639360,2.475,4095.6,4095.5,3.5462972]
[1760501640157,0.6346,4097.1,4095.6,2.44164469]
[1760501640462,0.1216,4096.9,4096.7,2.44093894]
[1760501640680,0.1216,4096.9,4096.6,2.44101947]
[1760501640840,0.0998,4096.8,4096.6,2.44101947]
[1760501641366,2.475,4096.7,4096.6,2.44101947]
[1760501643138,2.475,4096.7,4096.4,2.44116535]
[1760501643460,0.0998,4096.6,4095.0,0.002]
[1760501643663,0.1216,4096.5,4096.2,2.44127855]
[1760501643860,0.2214,4096.5,4096.2,2.44127855]
[1760501644353,0.2214,4096.5,4096.3,2.4412211]
[1760501644861,0.2214,4096.5,4096.2,2.44127519]
[1760501645168,0.2214,4096.5,4096.3,2.44122645]
[1760501645358,2.2,4096.4,4096.3,2.44122645]
[1760501646352,1.1,4096.4,4096.3,2.44122645]
[1760501647773,0.1216,4096.5,4096.4,2.44116785]
[1760501647953,2.475,4096.7,4096.4,0.4335]
[1760501648274,2.475,4096.7,4096.6,2.44104867]
[1760501648574,2.475,4096.7,4096.6,2.87454867]
[1760501648870,2.475,4096.7,4096.6,2.44104867]
[1760501650370,0.6336,4096.6,4095.9,2.44144937]
[1760501650571,0.6336,4096.6,4095.5,0.4543]
[1760501650765,0.6336,4096.6,4096.1,2.44130286]
[1760501650944,0.7334,4096.6,4096.1,2.44130286]
[1760501651476,0.7334,4096.6,4096.2,2.44127858]
[1760501651682,0.7334,4096.6,4095.5,0.4543]
[1760501651877,0.7334,4096.6,4096.0,2.44135345]
[1760501652219,0.7334,4096.6,4096.3,2.44120639]
[1760501652572,0.7334,4096.6,4096.2,2.44127259]
[1760501652775,0.7334,4096.6,4096.3,2.44120462]
[1760501653145,0.6336,4096.6,4096.4,2.44114277]
[1760501653981,0.6336,4096.6,4096.3,2.4412167]
[1760501654182,0.6336,4096.6,4096.2,2.44127707]
[1760501654481,0.001,4096.7,4096.5,0.2234]
[1760501654666,0.001,4096.7,4096.6,2.44104867]
[1760501654843,1.008,4096.7,4096.6,2.44104867]
[1760501655043,1.008,4096.7,4096.6,2.89334867]
[1760501655250,4.676,4096.7,4096.6,3.42679653]
[1760501656574,0.001,4097.1,4097.0,2.44081034]
[1760501657108,0.001,4097.1,4097.0,2.89311034]
[1760501657898,0.556,4097.1,4097.0,2.89311034]
[1760501658564,0.001,4097.2,4097.1,4.36075077]
[1760501658767,0.1022,4099.5,4097.1,3.93800865]
[1760501659095,0.1022,4099.5,4098.3,2.44003611]
[1760501659292,0.1022,4099.4,4098.2,2.1434]
[1760501659490,0.1022,4099.1,4098.2,2.44005418]
[1760501659799,1.014,4099.0,4098.5,2.43985871]
[1760501659998,0.6336,4098.9,4098.5,2.43985871]
[1760501660411,0.1216,4098.8,4098.6,2.43984641]
[1760501660698,0.1216,4098.8,4098.7,2.43979798]
[1760501660894,0.1216,4098.8,4098.5,2.4398629]
[1760501661099,1.014,4099.0,4098.6,2.43983004]
[1760501661311,1.014,4099.0,4098.8,2.43968688]
[1760501661511,0.1823,4098.9,4098.4,0.1216]
[1760501661816,0.2821,4098.9,4098.6,2.43984488]
[1760501661970,0.1823,4098.9,4098.6,2.43984488]
[1760501662171,0.1823,4098.9,4097.9,0.4523]
[1760501662475,1.014,4099.0,4098.8,2.43970398]
[1760501662682,1.19355,4099.0,4098.8,2.43970398]
[1760501662883,1.014,4099.0,4098.8,2.43970398]
[1760501663270,1.014,4099.0,4098.2,0.4523]
[1760501663465,1.014,4099.0,4097.7,0.12390117]
[1760501663466,1.014,4099.0,4098.8,2.43973473]
[1760501663685,1.014,4099.0,4095.7,2.575]
[1760501663686,1.1146,4099.0,4098.6,2.4398211]
[1760501663896,0.6336,4098.9,4097.5,2.5957]
[1760501664098,0.6336,4098.9,4097.7,1.92]
[1760501664403,0.6336,4098.9,4098.6,2.43985241]
[1760501664721,0.6336,4098.9,4098.4,2.43995155]
[1760501664919,0.7342,4098.9,4097.9,0.4523]
[1760501665074,0.6336,4098.9,4098.5,2.43990578]
[1760501665401,2.2,4098.8,4098.5,2.43990578]
[1760501665915,2.2,4098.8,4097.9,0.4523]
[1760501666101,2.2,4098.8,4098.6,2.43985153]
[1760501666300,2.2,4098.8,4098.7,2.43979798]
[1760501667001,0.6336,4098.9,4098.6,2.43985627]
[1760501667206,0.17482,4098.8,4098.6,2.43985627]
[1760501667914,0.17482,4098.8,4098.4,2.43991969]
[1760501668104,0.17482,4098.8,4098.5,2.43990476]
[1760501668300,0.6336,4098.7,4097.1,3.11531623]
[1760501668513,0.6336,4098.7,4096.6,0.53344786]
[1760501668514,0.6336,4097.5,4096.6,2.44104867]
[1760501668717,0.6336,4097.3,4096.5,0.4523]
[1760501669209,0.6336,4097.3,4096.7,2.44096438]
[1760501669413,0.38270967,4097.8,4096.5,2.89338577]
[1760501669708,2.475,4097.7,4097.0,2.44080778]
[1760501669911,2.593,4097.7,4096.8,2.89321797]
[1760501670111,0.8922,4097.6,4096.7,2.44298367]
[1760501670278,3.33266319,4097.6,4096.7,0.002]
[1760501670484,0.6336,4097.4,4096.7,0.002]
[1760501670810,0.6336,4097.5,4096.7,2.44295996]
[1760501671020,0.62114089,4097.4,4096.7,0.002]
[1760501671229,0.62114089,4097.4,4096.7,2.4429818]
[1760501672124,0.6336,4097.6,4097.1,2.44071454]
[1760501672324,0.1216,4097.2,4097.1,2.44071454]
[1760501672703,0.6336,4097.6,4097.1,2.44071454]
[1760501672704,2.593,4097.7,4097.3,2.44062276]
[1760501672904,0.1216,4097.5,4097.4,2.44057207]
[1760501673318,0.1216,4097.5,4097.2,2.4406703]
[1760501673624,0.1216,4097.5,4097.1,0.6757]
[1760501673925,0.1216,4097.5,4097.3,2.44061486]
[1760501674234,0.1216,4097.5,4097.3,2.44062084]
[1760501674616,0.1216,4097.5,4097.4,2.44057207]
[1760501674802,0.1216,4097.5,4097.3,2.44062303]
[1760501675017,0.1216,4097.5,4097.3,2.44063119]
[1760501675217,1.1,4097.4,4097.3,2.44063119]
[1760501675526,2.2,4097.4,4097.2,2.44068404]
[1760501675694,2.2,4097.4,4097.1,2.44075077]
[1760501676508,2.2,4097.4,4097.2,2.4406912]
[1760501676708,2.2,4097.4,4097.1,2.44075077]
[1760501677109,2.2,4097.4,4097.2,2.4406912]
[1760501677306,2.2,4097.4,4097.1,2.44075077]
[1760501677510,2.2,4097.4,4097.3,2.44063163]
[1760501677808,2.2,4097.4,4097.1,2.44069826]
[1760501678008,2.2,4097.4,4096.9,2.56246269]
[1760501678326,1.1252,4097.4,4096.7,0.002]
[1760501678500,0.1216,4097.2,4096.7,0.002]
[1760501678706,0.6336,4097.0,4096.7,0.002]
[1760501678906,0.1216,4096.9,4096.7,0.002]
[1760501680437,0.1216,4096.9,4096.7,2.44298829]
[1760501681031,0.1216,4096.9,4096.7,0.002]
[1760501681237,0.1216,4096.9,4096.7,2.44296596]
[1760501683013,0.1216,4096.9,4096.7,0.002]
[1760501683529,0.1216,4096.9,4096.7,2.44298455]
[1760501683928,0.8924,4096.8,4096.7,0.002]
[1760501684134,3.3674,4096.8,4096.7,0.002]
[1760501685213,5.5674,4096.8,4096.7,0.002]
[1760501687246,5.4684,4096.8,4096.7,0.002]
[1760501687543,6.30153463,4096.8,4096.7,0.002]
[1760501688843,4.10153463,4096.8,4096.7,0.002]
[1760501689801,6.64146413,4096.8,4096.7,0.002]
[1760501689955,19.67851884,4096.8,4096.7,0.002]
[1760501690129,22.07924954,4096.8,4096.7,0.002]
[1760501692529,9.04219483,4096.8,4096.7,0.002]
[1760501695329,11.24219483,4096.8,4096.7,0.002]
[1760501696135,9.04219483,4096.8,4096.7,0.002]
[1760501697655,5.83459483,4096.8,4096.7,0.002]
[1760501697959,8.84526519,4096.8,4096.7,0.002]
[1760501698255,6.37026519,4096.8,4096.7,0.002]
[1760501698430,2.85780106,4096.8,4096.7,0.002]
[1760501698757,2.85780106,4096.8,4096.7,0.4556]
[1760501698758,3.1086,4096.8,4096.7,0.4556]
[1760501698926,3.1086,4096.8,4096.7,0.002]
[1760501699330,3.1086,4096.8,4096.7,0.4556]
[1760501700058,5.5495295,4096.8,4096.7,0.002]
[1760501700833,8.30683667,4096.8,4096.7,0.002]
[1760501702476,8.40703667,4096.8,4096.7,0.002]
[1760501702964,8.30683667,4096.8,4096.7,0.002]
[1760501705266,10.50683667,4096.8,4096.7,0.002]
[1760501706649,4.395,4096.8,4096.7,0.002]
[1760501706866,3.1086,4096.8,4096.7,0.4556]
[1760501707277,3.1086,4096.8,4096.7,0.002]
[1760501707465,5.5495295,4096.8,4096.7,0.002]
[1760501708766,7.4695295,4096.8,4096.7,0.002]
[1760501708964,8.61589636,4096.8,4096.7,0.002]
[1760501709382,8.51459636,4096.8,4096.7,0.002]
[1760501712192,8.61589636,4096.8,4096.7,0.002]
[1760501712492,8.51459636,4096.8,4096.7,0.002]
[1760501713293,8.6125224,4096.8,4096.7,0.002]
[1760501715372,10.8125224,4096.8,4096.7,0.002]
[1760501718214,8.6125224,4096.8,4096.7,0.002]
[1760501718415,6.1715929,4096.8,4096.7,0.002]
[1760501718612,6.1715929,4096.8,4096.7,0.4757]
[1760501718613,4.9945295,4096.8,4096.7,0.4757]
[1760501718819,7.4695295,4096.8,4096.7,0.4757]
[1760501719614,5.0286,4096.8,4096.7,0.4757]
[1760501720525,7.4695295,4096.8,4096.7,0.4757]
[1760501720817,5.0286,4096.8,4096.7,0.4757]
[1760501721406,3.1086,4096.8,4096.7,0.4757]
[1760501721994,2.475,4096.8,4096.7,0.4757]
[1760501722222,3.1086,4096.8,4096.7,0.4757]
[1760501724436,3.70182197,4096.8,4096.7,0.002]
[1760501724601,5.5495295,4096.8,4096.7,0.002]
[1760501725335,7.7495295,4096.8,4096.7,0.002]
[1760501727010,4.2086,4096.8,4096.7,0.4757]
[1760501727820,3.1086,4096.8,4096.7,0.4757]
[1760501729017,3.1086,4096.8,4096.7,0.002]
[1760501729221,3.1086,4096.8,4096.7,0.4757]
[1760501729829,5.5495295,4096.8,4096.7,0.002]
[1760501731319,3.1086,4096.8,4096.7,0.4757]
[1760501733630,0.6336,4096.8,4096.7,0.4757]
[1760501733831,3.1086,4096.8,4096.7,0.4757]
[1760501734350,2.475,4096.8,4096.7,0.76757463]
[1760501734646,2.475,4096.8,4096.7,2.91668908]
[1760501735348,4.675,4096.8,4096.7,2.91668908]
[1760501737735,4.675,4096.8,4096.7,0.002]
[1760501737736,2.475,4096.8,4096.7,0.002]
[1760501738128,2.5966,4096.8,4096.7,0.002]
[1760501738551,3.2302,4096.8,4096.7,0.002]
[1760501738733,3.83558166,4096.8,4096.7,0.002]
[1760501740231,3.2302,4096.8,4096.7,0.002]
[1760501741324,5.6711295,4096.8,4096.7,0.002]
[1760501741951,7.6907295,4096.8,4096.7,0.002]
[1760501742152,7.5911295,4096.8,4096.7,0.002]
[1760501742326,7.6907295,4096.8,4096.7,0.002]
[1760501742529,9.22939039,4096.8,4096.7,0.002]
[1760501742843,9.12879039,4096.8,4096.7,0.002]
[1760501743043,5.0276,4096.8,4096.7,0.002]
[1760501743431,7.4685295,4096.8,4096.7,0.002]
[1760501744047,5.0276,4096.8,4096.7,0.002]
[1760501745259,7.2276,4096.8,4096.7,0.002]
[1760501746036,5.3076,4096.8,4096.7,0.4598]
[1760501746846,2.474,4096.8,4096.7,0.4598]
[1760501748348,2.474,4096.8,4096.7,2.44298908]
[1760501748550,2.474,4096.8,4096.7,3.38940333]
[1760501748749,2.474,4096.8,4096.7,0.94841425]
[1760501750352,2.474,4096.8,4096.7,3.38940333]
[1760501750758,2.474,4096.8,4096.7,0.94841425]
[1760501752349,2.474,4096.8,4096.7,3.38940333]
[1760501755061,2.474,4096.8,4096.7,0.94841425]
[1760501755261,4.674,4096.8,4096.7,0.94841425]
[1760501755479,4.674,4096.8,4096.7,2.90078908]
[1760501756575,4.2076,4096.8,4096.7,0.002]
[1760501757182,7.5675295,4096.8,4096.7,0.002]
[1760501758677,5.1266,4096.8,4096.7,0.002]
[1760501758981,5.93762037,4096.8,4096.7,0.002]
[1760501759272,8.37854987,4096.8,4096.7,0.002]